bitfinex/quotes_BTCUSD_20250204
["timestamp","ask_amount","ask_price","bid_price","bid_amount"]
[1738703260852,0.01,97864.0,97828.0,0.20444]
[1738703261057,0.08158811,97865.0,97829.0,0.13306757]
[1738703261271,0.08158811,97871.0,97863.0,0.204366]
[1738703261591,0.153311,97841.0,97825.0,0.153334]
[1738703261796,0.01,97848.0,97825.0,0.10238506]
[1738703262001,0.01,97847.0,97825.0,0.10238506]
[1738703262210,0.01,97849.0,97829.0,0.02006862]
[1738703262417,0.01,97854.0,97830.0,0.10238506]
[1738703262612,0.0002245,97855.0,97830.0,0.10238506]
[1738703262812,0.08158811,97844.0,97843.0,0.142306]
[1738703263247,0.0002245,97855.0,97830.0,0.10238506]
[1738703263450,0.0002245,97855.0,97854.0,0.153289]
[1738703263659,0.0002245,97855.0,97854.0,0.25567406]
[1738703264541,0.0002245,97855.0,97854.0,0.26320746]
[1738703264756,0.0002245,97855.0,97854.0,0.26336071]
[1738703265178,0.08158811,97887.0,97854.0,0.11007171]
[1738703265404,0.08158811,97877.0,97876.0,0.153255]
[1738703265602,0.08158811,97877.0,97876.0,0.25564006]
[1738703265726,0.08158811,97887.0,97886.0,0.153239]
[1738703266153,0.01,97888.0,97876.0,0.10238506]
[1738703266368,0.09158811,97897.0,97881.0,0.204328]
[1738703266577,0.01,97888.0,97884.0,0.153241]
[1738703266751,0.01,97888.0,97872.0,0.15326]
[1738703266952,0.01,97887.0,97860.0,0.00015325]
[1738703267183,0.02,97887.0,97874.0,0.153258]
[1738703267384,0.02,97887.0,97862.0,0.204369]
[1738703267385,0.01,97887.0,97862.0,0.204369]
[1738703267542,0.01,97887.0,97863.0,0.10238506]
[1738703267747,0.08158811,97897.0,97865.0,0.153272]
[1738703267954,0.09158811,97897.0,97888.0,0.153235]
[1738703268171,0.01,97891.0,97888.0,0.153235]
[1738703268363,0.09158811,97897.0,97866.0,0.10238506]
[1738703268544,0.08158811,97897.0,97867.0,0.03349333]
[1738703268761,0.01,97891.0,97880.0,0.20433]
[1738703269019,0.01,97891.0,97886.0,0.153237]
[1738703269423,0.09158811,97897.0,97881.0,0.204329]
[1738703269625,0.08158811,97897.0,97887.0,0.153236]
[1738703269805,0.08158811,97897.0,97885.0,0.153241]
[1738703270002,0.01,97901.0,97880.0,0.10238506]
[1738703270229,0.076,97908.0,97881.0,0.11262357]
[1738703270467,0.08158811,97909.0,97903.0,0.153212]
[1738703270669,0.01,97907.0,97896.0,0.204296]
[1738703270822,0.01,97907.0,97884.0,0.204323]
[1738703271034,0.01,97913.0,97885.0,0.10238506]
[1738703271240,0.01,97907.0,97887.0,0.204317]
[1738703271401,0.01,97906.0,97895.0,0.153224]
[1738703271638,0.153235,97889.0,97880.0,0.00759954]
[1738703271848,0.01,97895.0,97872.0,0.02029605]
[1738703272048,0.01,97895.0,97873.0,0.12140434]
[1738703272249,0.01,97897.0,97881.0,0.153246]
[1738703272491,0.01,97895.0,97881.0,0.153246]
[1738703272692,0.01,97895.0,97873.0,0.12140434]
[1738703272924,0.00046323,97906.0,97899.0,0.153218]
[1738703273126,0.09158811,97905.0,97899.0,0.153218]
[1738703273295,0.09158811,97905.0,97874.0,0.204344]
[1738703273498,0.01,97905.0,97875.0,0.12484907]
[1738703273711,0.01,97898.0,97875.0,0.10238506]
[1738703273872,0.02,97898.0,97877.0,0.204338]
[1738703274111,0.01,97898.0,97878.0,0.204336]
[1738703274353,0.00022428,97891.0,97878.0,0.204336]
[1738703274557,0.00022428,97891.0,97879.0,0.10238506]
[1738703274881,0.00022428,97891.0,97890.0,0.153233]
[1738703275232,0.00022428,97891.0,97890.0,0.25561806]
[1738703275755,0.00022428,97891.0,97875.0,0.204341]
[1738703276004,0.00022428,97891.0,97811.0,0.08158811]
[1738703276005,0.00022428,97891.0,97889.0,0.153234]
[1738703276417,0.00022428,97891.0,97889.0,0.153233]
[1738703276629,0.00022428,97891.0,97876.0,0.10238506]
[1738703276933,0.00022428,97891.0,97884.0,0.153241]
[1738703277090,0.00022428,97891.0,97878.0,0.204336]
[1738703277290,0.00022428,97891.0,97885.0,0.15324]
[1738703277663,0.00022428,97891.0,97889.0,0.153233]
[1738703278280,0.00022428,97891.0,97890.0,0.153233]
[1738703278829,0.00022428,97891.0,97889.0,0.153233]
[1738703279838,0.00022428,97891.0,97890.0,0.10238506]
[1738703281857,0.00022428,97891.0,97890.0,0.25561806]
[1738703282087,0.00022428,97891.0,97890.0,0.10238506]
[1738703282296,0.00022428,97891.0,97873.0,0.204345]
[1738703282297,0.00022428,97891.0,97873.0,0.153259]
[1738703282500,0.00022428,97891.0,97874.0,0.11974057]
[1738703282711,0.00022428,97891.0,97889.0,0.153233]
[1738703282914,0.00022428,97891.0,97890.0,0.10238506]
[1738703284079,0.00022428,97891.0,97890.0,0.25561806]
[1738703284314,0.00022428,97891.0,97865.0,0.204361]
[1738703284672,0.00022428,97891.0,97873.0,0.10238506]
[1738703285124,0.00022428,97891.0,97865.0,0.00760212]
[1738703285125,0.01,97887.0,97865.0,0.00760212]
[1738703285326,0.09158811,97890.0,97843.0,0.0355915]
[1738703285327,0.01,97874.0,97843.0,0.0355915]
[1738703285577,0.204336,97878.0,97831.0,0.29310746]
[1738703285578,0.01,97871.0,97844.0,0.10238506]
[1738703286003,0.01,97871.0,97854.0,0.153288]
[1738703286430,0.01,97871.0,97853.0,0.204387]
[1738703286567,0.01,97871.0,97855.0,0.204384]
[1738703286762,0.01,97871.0,97854.0,0.02088097]
[1738703286989,0.01,97871.0,97855.0,0.10253831]
[1738703287207,0.01,97871.0,97866.0,0.153269]
[1738703287404,0.01,97871.0,97855.0,0.10253831]
[1738703287833,0.01,97871.0,97866.0,0.153269]
[1738703288216,0.01,97871.0,97859.0,0.204373]
[1738703288419,0.01,97871.0,97855.0,0.00773265]
[1738703288621,0.01,97871.0,97861.0,0.153278]
[1738703288819,0.01,97871.0,97858.0,0.153283]
[1738703288820,0.01,97871.0,97863.0,0.153274]
[1738703289025,0.01,97883.0,97864.0,0.10238506]
[1738703289232,0.00022428,97891.0,97864.0,0.10238506]
[1738703289431,0.08158811,97885.0,97884.0,0.153242]
[1738703289635,0.08158811,97885.0,97864.0,0.10238506]
[1738703289898,0.01022428,97891.0,97876.0,0.153254]
[1738703290100,0.01022428,97891.0,97864.0,0.10238506]
[1738703290101,0.01,97879.0,97864.0,0.10238506]
[1738703290319,0.153253,97877.0,97864.0,0.10238506]
[1738703290554,0.01,97879.0,97864.0,0.10238506]
[1738703290766,0.01,97871.0,97850.0,0.204394]
[1738703290938,0.01,97871.0,97855.0,0.00015325]
[1738703290939,0.01,97869.0,97855.0,0.00015325]
[1738703291142,0.02,97866.0,97855.0,0.00015325]
[1738703291788,0.01,97866.0,97857.0,0.153284]
[1738703291994,0.01,97873.0,97858.0,0.10238506]
[1738703292201,0.02,97873.0,97855.0,0.00015325]
[1738703292407,0.01,97886.0,97859.0,0.10238506]
[1738703292620,0.01,97878.0,97859.0,0.10238506]
[1738703292829,0.204301,97895.0,97859.0,0.10238506]
[1738703292830,0.01,97892.0,97871.0,0.20435]
[1738703293055,0.01,97892.0,97872.0,0.10238506]
[1738703293257,0.01,97888.0,97872.0,0.10238506]
[1738703293465,0.01,97904.0,97889.0,0.153233]
[1738703293676,0.09011552,97909.0,97890.0,0.10238506]
[1738703293876,0.01,97899.0,97889.0,0.153233]
[1738703294098,0.01,97899.0,97889.0,0.10238506]
[1738703294316,0.01,97899.0,97889.0,0.25561906]
[1738703294517,0.01,97899.0,97889.0,0.10238506]
[1738703294716,0.01,97899.0,97889.0,0.10253831]
[1738703294920,0.02,97899.0,97889.0,0.00015325]
[1738703295128,0.01,97893.0,97889.0,0.00015325]
[1738703295345,0.153228,97894.0,97889.0,0.00015325]
[1738703295346,0.173233,97890.0,97889.0,0.00015325]
[1738703295535,0.17476541,97890.0,97889.0,0.00015325]
[1738703295672,0.173233,97890.0,97889.0,0.00015325]
[1738703296950,0.17476542,97890.0,97889.0,0.00015325]
[1738703297367,0.35635048,97890.0,97889.0,0.00015325]
[1738703297570,0.40221806,97890.0,97889.0,0.00015325]
[1738703297702,0.40987956,97890.0,97889.0,0.00026005]
[1738703298071,0.40987956,97890.0,97810.0,0.32331881]
[1738703298072,0.153292,97853.0,97814.0,0.204469]
[1738703298260,0.01,97855.0,97821.0,0.10238506]
[1738703298463,0.01,97852.0,97821.0,0.10238506]
[1738703298667,0.01,97842.0,97827.0,0.20444]
[1738703298906,0.01,97842.0,97827.0,0.10238506]
[1738703299105,0.08158811,97851.0,97817.0,0.00015384]
[1738703299106,0.02,97831.0,97817.0,0.00015384]
[1738703299327,0.01,97830.0,97817.0,0.00015384]
[1738703299544,0.01,97830.0,97819.0,0.153344]
[1738703299773,0.01,97830.0,97817.0,0.00015384]
[1738703300201,0.01,97830.0,97818.0,0.10238506]
[1738703300419,0.01,97830.0,97826.0,0.153332]
[1738703300599,0.01,97839.0,97818.0,0.11557349]
[1738703300795,0.01,97836.0,97829.0,0.153328]
[1738703301008,0.01,97844.0,97818.0,0.10238506]
[1738703301178,0.01,97836.0,97818.0,0.10238506]
[1738703301345,0.01,97836.0,97826.0,0.153332]
[1738703301542,0.01,97836.0,97818.0,0.10238506]
[1738703301815,0.01,97836.0,97818.0,0.13602099]
[1738703302003,0.01,97850.0,97818.0,0.10238506]
[1738703302204,0.08158811,97851.0,97843.0,0.153306]
[1738703302345,0.08158811,97851.0,97836.0,0.005]
[1738703302704,0.08158811,97851.0,97837.0,0.10238506]
[1738703302837,0.01496,97857.0,97853.0,0.15329]
[1738703303047,0.08158811,97861.0,97842.0,0.02016123]
[1738703303280,0.01,97872.0,97862.0,0.153276]
[1738703303478,0.01,97869.0,97844.0,0.204407]
[1738703303684,0.01,97869.0,97842.0,0.02016123]
[1738703303685,0.01484,97877.0,97846.0,0.204402]
[1738703304089,0.08158811,97879.0,97847.0,0.10238506]
[1738703304287,0.08158811,97879.0,97877.0,0.153253]
[1738703304559,0.09011552,97880.0,97877.0,0.153253]
[1738703304560,0.09011552,97880.0,97879.0,0.15325]
[1738703304793,0.09011552,97880.0,97879.0,0.25563506]
[1738703305290,0.04901193,97880.0,97879.0,0.25563506]
[1738703305660,0.01,97910.0,97890.0,0.153233]
[1738703305818,0.01,97910.0,97890.0,0.25561806]
[1738703306228,0.0784,97913.0,97890.0,0.25561806]
[1738703306428,0.08158811,97905.0,97890.0,0.25561806]
[1738703306886,0.08158811,97905.0,97890.0,0.26529528]
[1738703307138,0.04901193,97915.0,97890.0,0.26529528]
[1738703307557,0.01,97912.0,97890.0,0.26529528]
[1738703307728,0.04901193,97915.0,97890.0,0.26529528]
[1738703307950,0.01,97912.0,97890.0,0.26529528]
[1738703308388,0.04901193,97915.0,97890.0,0.26529528]
[1738703308565,0.08158811,97917.0,97890.0,0.26529528]
[1738703308805,0.08158811,97907.0,97890.0,0.26529528]
[1738703309006,0.01,97893.0,97879.0,0.15340284]
[1738703309132,0.0814,97897.0,97884.0,0.00930075]
[1738703309331,0.0814,97897.0,97885.0,0.25562506]
[1738703309569,0.01,97905.0,97889.0,0.0001068]
[1738703309768,0.0814,97914.0,97890.0,0.10238506]
[1738703309769,0.01,97900.0,97890.0,0.10238506]
[1738703311197,0.01,97912.0,97890.0,0.10238506]
[1738703311395,0.0002245,97958.0,97890.0,0.10238506]
[1738703311396,0.01,97924.0,97890.0,0.10238506]
[1738703311599,0.0814,97928.0,97890.0,0.10238506]
[1738703312005,0.01,97934.0,97916.0,0.153192]
[1738703312251,0.00022491,97942.0,97919.0,0.153187]
[1738703312412,0.00022491,97942.0,97941.0,0.153153]
[1738703312578,0.0002245,97953.0,97952.0,0.153136]
[1738703312794,0.0002245,97953.0,97952.0,0.25552106]
[1738703313003,0.0814,97992.0,97957.0,0.153128]
[1738703313227,0.08158811,97991.0,97984.0,0.153086]
[1738703313428,0.01,98012.0,97984.0,0.29119146]
[1738703313627,0.01,98010.0,97984.0,0.29119146]
[1738703313872,0.00068867,97985.0,97984.0,0.29119146]
[1738703314663,0.00068867,97985.0,97984.0,0.32147831]
[1738703314859,0.00068867,97985.0,97984.0,0.30227155]
[1738703315269,0.00068867,97985.0,97984.0,0.31169753]
[1738703315899,0.00068867,97985.0,97984.0,0.28141068]
[1738703316251,0.00068867,97985.0,97984.0,0.24569028]
[1738703316453,0.00068867,97985.0,97984.0,0.11181104]
[1738703316684,0.00068867,97985.0,97937.0,0.0476]
[1738703316869,0.01068867,97985.0,97961.0,0.10238506]
[1738703317101,0.01068867,97985.0,97973.0,0.153102]
[1738703317394,0.01068867,97985.0,97974.0,0.10238506]
[1738703318217,0.01,97983.0,97974.0,0.10238506]
[1738703318435,0.153093,97980.0,97952.0,0.153136]
[1738703318637,0.01,97982.0,97953.0,0.25238506]
[1738703318868,0.01,97982.0,97970.0,0.153107]
[1738703319067,0.16377367,97985.0,97971.0,0.0357256]
[1738703319068,0.01,97981.0,97971.0,0.0357256]
[1738703319295,0.01068867,97985.0,97977.0,0.153097]
[1738703319504,0.01,97981.0,97971.0,0.10238506]
[1738703320140,0.01,97976.0,97941.0,0.204204]
[1738703320353,0.01,97973.0,97946.0,0.10238506]
[1738703320575,0.01,97973.0,97947.0,0.561528]
[1738703320752,0.01,97972.0,97949.0,0.204187]
[1738703320959,0.01,97974.0,97950.0,0.30657006]
[1738703321167,0.01,97977.0,97970.0,0.153107]
[1738703321374,0.01,97977.0,97953.0,0.204179]
[1738703321578,0.01,97977.0,97951.0,0.03065701]
[1738703321579,0.01,97980.0,97971.0,0.10238506]
[1738703321786,0.01,97980.0,97973.0,0.153102]
[1738703322211,0.00022408,97983.0,97982.0,0.153089]
[1738703322353,0.00022408,97983.0,97982.0,0.1683979]
[1738703322888,0.00022408,97983.0,97982.0,0.153089]
[1738703323073,0.00022408,97983.0,97981.0,0.15309]
[1738703323293,0.00022408,97983.0,97982.0,0.10238506]
[1738703326606,0.00022408,97983.0,97940.0,0.32321191]
[1738703326607,0.01,97982.0,97940.0,0.32321191]
[1738703326808,0.01,97980.0,97965.0,0.02076729]
[1738703327014,0.01,97979.0,97966.0,0.10238506]
[1738703327470,0.01,97979.0,97971.0,0.153105]
[1738703327646,0.01,97979.0,97965.0,0.02076729]
[1738703327647,0.00022408,97983.0,97982.0,0.153089]
[1738703327846,0.00022408,97983.0,97982.0,0.25547406]
[1738703328511,0.00022408,97983.0,97982.0,0.26495672]
[1738703331670,0.00022408,97983.0,97982.0,0.41495672]
[1738703331872,0.203991,98044.0,97982.0,0.41495672]
[1738703331873,0.00022471,98022.0,98017.0,0.153034]
[1738703332064,0.00022471,98022.0,98017.0,0.2555729]
[1738703332265,0.00022471,98022.0,98017.0,0.45153509]
[1738703332467,0.00022471,98022.0,98018.0,0.15]
[1738703332748,0.08158811,98046.0,98022.0,0.15]
[1738703332953,0.08158811,98046.0,98039.0,0.153]
[1738703333149,0.162991,98045.0,98021.0,0.15]
[1738703333347,0.01022512,98040.0,98028.0,0.153017]
[1738703333572,0.01022512,98040.0,98032.0,0.15301]
[1738703333775,0.00022512,98040.0,98036.0,0.153004]
[1738703333976,0.00022512,98040.0,98022.0,0.040963]
[1738703333977,0.00022512,98040.0,98037.0,0.10238506]
[1738703334181,0.00022512,98040.0,98038.0,0.01023851]
[1738703334465,0.00022512,98040.0,98039.0,0.10238506]
[1738703335215,0.00022512,98040.0,98029.0,0.20402]
[1738703335385,0.00022512,98040.0,98029.0,0.10238506]
[1738703335386,0.01,98035.0,98029.0,0.10238506]
[1738703335773,0.01,98027.0,98017.0,0.00015384]
[1738703335973,0.01,98027.0,98018.0,0.11770454]
[1738703336160,0.01,98036.0,98032.0,0.15301]
[1738703336350,0.01,98036.0,98020.0,0.204039]
[1738703336564,0.08158811,98055.0,98018.0,0.11770454]
[1738703336565,0.01,98043.0,98021.0,0.10238506]
[1738703336692,0.01,98030.0,98021.0,0.10238506]
[1738703336907,0.01,98028.0,98021.0,0.10238506]
[1738703337098,0.01,98025.0,98017.0,0.00974321]
[1738703337299,0.0903,98018.0,98017.0,0.00015384]
[1738703337704,0.1003,98018.0,98017.0,0.00015384]
[1738703338213,0.01,98026.0,98021.0,0.153028]
[1738703338467,0.01,98028.0,98026.0,0.153019]
[1738703338606,0.01,98026.0,98022.0,0.153026]
[1738703338808,0.01,98026.0,98017.0,0.00015384]
[1738703339019,0.01,98038.0,98018.0,0.10238506]
[1738703339237,0.01,98036.0,98020.0,0.204039]
[1738703339438,0.01,98036.0,98033.0,0.153008]
[1738703339639,0.01,98036.0,98031.0,0.153012]
[1738703339844,0.01,98036.0,98032.0,0.10238506]
[1738703340446,0.01,98027.0,98018.0,0.204044]
[1738703340652,0.01,98027.0,98022.0,0.204034]
[1738703340883,0.01,98034.0,98023.0,0.10238506]
[1738703341113,0.00022512,98040.0,98023.0,0.10238506]
[1738703341114,0.00022512,98040.0,98039.0,0.153]
[1738703341327,0.00022512,98040.0,98039.0,0.25538506]
[1738703341952,0.00022512,98040.0,98039.0,0.40538506]
[1738703342162,0.00022512,98040.0,98039.0,0.48672457]
[1738703342818,0.00022512,98040.0,98039.0,0.40538506]
[1738703343026,0.00022512,98040.0,98039.0,0.11172183]
[1738703343249,0.01,98035.0,98027.0,0.204024]
[1738703343456,0.00022512,98040.0,98031.0,0.153012]
[1738703343699,0.01,98034.0,98031.0,0.10238506]
[1738703344106,0.01,98028.0,98017.0,0.00015384]
[1738703344325,0.01,98034.0,98026.0,0.153019]
[1738703344550,0.01,98034.0,98027.0,0.10238506]
[1738703344799,0.01022512,98040.0,98028.0,0.01023851]
[1738703345039,0.01022512,98040.0,98029.0,0.10238506]
[1738703345242,0.01,98030.0,98019.0,0.20404]
[1738703345445,0.01,98030.0,98022.0,0.153026]
[1738703345659,0.01,98026.0,98022.0,0.10238506]
[1738703345864,0.01,98021.0,98017.0,0.00015384]
[1738703346070,0.01,98021.0,98018.0,0.10238506]
[1738703346287,0.01,98018.0,98017.0,0.00015384]
[1738703347525,0.173033,98018.0,98017.0,0.00015384]
[1738703347749,0.02,98018.0,98017.0,0.00015384]
[1738703347954,0.173033,98018.0,98017.0,0.00015384]
[1738703348400,0.218833,98018.0,98017.0,0.00015384]
[1738703348851,0.32121806,98018.0,98017.0,0.00015384]
[1738703349064,0.40151806,98018.0,98017.0,0.00015384]
[1738703349280,0.163087,97983.0,97981.0,0.08158811]
[1738703349484,0.299187,97983.0,97982.0,0.00026059]
[1738703350334,0.40157206,97983.0,97982.0,0.00026059]
[1738703350944,0.41117391,97983.0,97982.0,0.00026059]
[1738703351171,0.4944691,97983.0,97982.0,0.00026059]
[1738703351399,0.41117391,97983.0,97982.0,0.00026059]
[1738703352238,0.41117391,97983.0,97940.0,0.08158811]
[1738703352239,0.01,97941.0,97940.0,0.08158811]
[1738703352452,0.01,97941.0,97940.0,0.08205228]
[1738703352670,0.01,97944.0,97940.0,0.00046417]
[1738703352871,0.01,97948.0,97941.0,0.204204]
[1738703352872,0.01,97942.0,97941.0,0.204204]
[1738703353462,0.01,97942.0,97940.0,0.20466917]
[1738703353783,0.01,97942.0,97940.0,0.00046417]
[1738703354024,0.02084285,97978.0,97940.0,0.00046417]
[1738703354025,0.01,97941.0,97940.0,0.00046417]
[1738703354593,0.01,97941.0,97940.0,0.15361817]
[1738703354798,0.01,97941.0,97940.0,0.00046417]
[1738703355003,0.01,97941.0,97940.0,0.15361817]
[1738703355247,0.204164,97961.0,97940.0,0.15361817]
[1738703355248,0.01,97946.0,97944.0,0.153147]
[1738703355448,0.01,97952.0,97945.0,0.10238506]
[1738703355654,0.01,97952.0,97951.0,0.153136]
[1738703355856,0.01,97960.0,97959.0,0.153125]
[1738703356168,0.08158811,97970.0,97968.0,0.153111]
[1738703356475,0.01,97962.0,97959.0,0.10238506]
[1738703356657,0.01,97953.0,97940.0,0.00057077]
[1738703356866,0.01,97953.0,97944.0,0.204198]
[1738703357068,0.01,97950.0,97949.0,0.15314]
[1738703357481,0.01,97959.0,97958.0,0.153126]
[1738703357681,0.01,97961.0,97960.0,0.153123]
[1738703357905,0.01,97961.0,97959.0,0.153124]
[1738703358108,0.01,97961.0,97959.0,0.25550906]
[1738703358387,0.01,97961.0,97960.0,0.10238506]
[1738703358629,0.01,97968.0,97965.0,0.153115]
[1738703358832,0.01,97980.0,97972.0,0.153104]
[1738703359048,0.01344,97987.0,97974.0,0.153101]
[1738703359049,0.01,97975.0,97974.0,0.153101]
[1738703359244,0.02,97979.0,97978.0,0.153095]
[1738703359397,0.01344,97987.0,97978.0,0.10238506]
[1738703359600,0.01344,97987.0,97960.0,0.32321191]
[1738703359601,0.01,97995.0,97979.0,0.10238506]
[1738703359801,0.01,97995.0,97994.0,0.15307]
[1738703360026,0.09015581,97999.0,97998.0,0.153064]
[1738703360451,0.09015581,97999.0,97998.0,0.25544906]
[1738703360791,0.09015581,97999.0,97998.0,0.33408614]
[1738703361691,0.09015581,97999.0,97998.0,0.48408614]
[1738703362031,0.02579818,97999.0,97998.0,0.48408614]
[1738703362262,0.02579818,98028.0,98025.0,0.153022]
[1738703362462,0.02579818,98028.0,98026.0,0.10238506]
[1738703362666,0.02579818,98028.0,98027.0,0.153019]
[1738703362866,0.02579818,98028.0,98027.0,0.25540406]
[1738703363642,0.02579818,98028.0,98027.0,0.25555781]
[1738703363854,0.02579818,98028.0,98027.0,0.32191979]
[1738703364503,0.02579818,98028.0,98027.0,0.33161257]
[1738703364706,0.02579818,98028.0,98027.0,0.48161257]
[1738703365336,0.00022512,98040.0,98039.0,0.153]
[1738703365539,0.00022512,98040.0,98039.0,0.25538506]
[1738703365950,0.00022512,98040.0,98039.0,0.10238506]
[1738703366655,0.00022512,98040.0,98027.0,0.27053873]
[1738703366656,0.01,98031.0,98030.0,0.00977927]
[1738703366866,0.01,98031.0,98030.0,0.11216433]
[1738703367071,0.01,98031.0,98030.0,0.10238506]
[1738703367432,0.01,98033.0,98031.0,0.153012]
[1738703367636,0.01,98033.0,98032.0,0.15141082]
[1738703368058,0.01,98033.0,98032.0,0.10238506]
[1738703368258,0.01,98038.0,98036.0,0.153004]
[1738703368417,0.01,98037.0,98032.0,0.10238506]
[1738703368617,0.011,98033.0,98032.0,0.10238506]
[1738703368840,0.01,98028.0,98027.0,0.00015375]
[1738703369041,0.01,98028.0,98027.0,0.10253881]
[1738703369260,0.01,98028.0,98027.0,0.14944212]
[1738703369630,0.01,98035.0,98027.0,0.14944212]
[1738703369827,0.01,98033.0,98032.0,0.153011]
[1738703370027,0.001,98033.0,98032.0,0.25539606]
[1738703371260,0.01022512,98040.0,98033.0,0.204012]
[1738703371434,0.01022512,98040.0,98035.0,0.204008]
[1738703371681,0.01022512,98040.0,98036.0,0.10238506]
[1738703371889,0.01,98028.0,98027.0,0.00015375]
[1738703372091,0.01,98031.0,98027.0,0.15317275]
[1738703372298,0.01,98028.0,98027.0,0.00015375]
[1738703373032,0.02,98028.0,98027.0,0.00015375]
[1738703373237,0.173017,98028.0,98027.0,0.00015375]
[1738703373751,0.17454717,98028.0,98027.0,0.00015375]
[1738703373901,0.153076,97990.0,97970.0,0.204143]
[1738703374111,0.02,97979.0,97978.0,0.10238506]
[1738703374513,0.01,97978.0,97977.0,0.00015371]
[1738703374876,0.02,97978.0,97977.0,0.00015371]
[1738703376116,0.02153097,97978.0,97977.0,0.00015371]
[1738703376525,0.02453097,97978.0,97977.0,0.00015371]
[1738703376735,0.02753097,97978.0,97977.0,0.00015371]
[1738703377354,0.026,97978.0,97977.0,0.00015371]
[1738703377568,0.016,97978.0,97977.0,0.00015371]
[1738703377972,0.013,97978.0,97977.0,0.11786384]
[1738703378176,0.023,97978.0,97977.0,0.11786384]
[1738703378361,0.021,97978.0,97977.0,0.11886384]
[1738703378565,0.031,97978.0,97977.0,0.10353877]
[1738703378787,0.028,97978.0,97977.0,0.10353877]
[1738703378993,0.028,97978.0,97977.0,0.00115371]
[1738703378994,0.029,97978.0,97977.0,0.00115371]
[1738703379210,0.021,97978.0,97977.0,0.00015371]
[1738703379419,0.174095,97978.0,97977.0,0.00026041]
[1738703379800,0.175095,97978.0,97977.0,0.00026041]
[1738703380437,0.022,97978.0,97977.0,0.00026041]
[1738703380864,0.012,97978.0,97977.0,0.00026041]
[1738703381076,0.01,97978.0,97977.0,0.00026041]
[1738703381255,0.01,97986.0,97985.0,0.153084]
[1738703381492,0.0883,98005.0,97985.0,0.10238506]
[1738703381699,0.08158811,98007.0,97977.0,0.00026041]
[1738703381700,0.01,98002.0,98001.0,0.153059]
[1738703381901,0.01,98008.0,98001.0,0.11769096]
[1738703382104,0.01,98011.0,98002.0,0.10238506]
[1738703382313,0.01,98010.0,98009.0,0.153046]
[1738703382521,0.01,98012.0,98011.0,0.153044]
[1738703382736,0.01,98026.0,98012.0,0.204056]
[1738703382950,0.282292,98043.0,98013.0,0.10238506]
[1738703382951,0.01,98035.0,98013.0,0.10238506]
[1738703383154,0.0783,98043.0,98013.0,0.10238506]
[1738703383155,0.01022512,98042.0,98030.0,0.153014]
[1738703383365,0.01022512,98042.0,98030.0,0.25539906]
[1738703383570,0.00022512,98042.0,98030.0,0.25539906]
[1738703383774,0.00022512,98042.0,98030.0,0.25555277]
[1738703384291,0.01,98041.0,98030.0,0.25555277]
[1738703384700,0.01,98034.0,98030.0,0.25555277]
[1738703385138,0.01,98034.0,98033.0,0.153009]
[1738703385303,0.01,98034.0,98033.0,0.25539406]
[1738703386308,0.01,98031.0,98030.0,0.00015371]
[1738703386527,0.01,98031.0,98030.0,0.10253877]
[1738703386903,0.01,98031.0,98030.0,0.00015371]
[1738703387107,0.01,98034.0,98030.0,0.10253877]
[1738703387246,0.00022408,98037.0,98035.0,0.153006]
[1738703387455,0.01022408,98037.0,98036.0,0.10238506]
[1738703387897,0.01,98031.0,98010.0,0.32321191]
[1738703388103,0.01,98031.0,98012.0,0.204055]
[1738703388438,0.01,98031.0,97977.0,0.4542637]
[1738703388439,0.1114046,98031.0,98002.0,0.00940683]
[1738703388568,0.1114046,98031.0,98015.0,0.153037]
[1738703388782,0.1114046,98031.0,98011.0,0.204057]
[1738703388981,0.1114046,98031.0,98002.0,0.00940683]
[1738703389202,0.1114046,98031.0,98012.0,0.204056]
[1738703389631,0.0917,98031.0,98002.0,0.00940683]
[1738703390273,0.0917,98031.0,98023.0,0.204032]
[1738703390475,0.01,98031.0,98027.0,0.153018]
[1738703390676,0.027,98031.0,98030.0,0.13825914]
[1738703390881,0.007,98031.0,98030.0,0.10253877]
[1738703391188,0.002,98031.0,98030.0,0.10253877]
[1738703391303,0.01022408,98037.0,98030.0,0.10253877]
[1738703391519,0.01022408,98037.0,98036.0,0.153005]
[1738703391712,0.01022408,98037.0,98036.0,0.32174704]
[1738703391713,0.00022408,98037.0,98036.0,0.32174704]
[1738703392942,0.00022408,98037.0,98036.0,0.32110155]
[1738703393353,0.00022408,98037.0,98036.0,0.33055352]
[1738703394013,0.00022408,98037.0,98036.0,0.26419654]
[1738703394943,0.00122408,98037.0,98036.0,0.26419654]
[1738703395375,0.00022408,98037.0,98036.0,0.26419654]
[1738703395736,0.00122408,98037.0,98036.0,0.26419654]
[1738703395938,0.00122408,98037.0,98036.0,0.11183703]
[1738703396146,0.01,98031.0,98030.0,0.00015371]
[1738703396388,0.01,98031.0,98030.0,0.25555277]
[1738703397079,0.01,98032.0,98031.0,0.153012]
[1738703397286,0.01,98032.0,98031.0,0.25539706]
[1738703397643,0.02,98032.0,98031.0,0.25539706]
[1738703398104,0.01,98032.0,98031.0,0.25539706]
[1738703398309,0.01,98032.0,98031.0,0.10238506]
[1738703398526,0.01,98032.0,98031.0,0.25539706]
[1738703398729,0.01,98032.0,98031.0,0.34323762]
[1738703398971,0.00022408,98037.0,98036.0,0.153005]
[1738703399170,0.02022408,98037.0,98036.0,0.25539006]
[1738703400253,0.02022408,98037.0,98036.0,0.003]
[1738703400774,0.24842708,98037.0,98036.0,0.003]
[1738703401358,0.01,98031.0,98030.0,0.00015371]
[1738703401559,0.02,98031.0,98030.0,0.00015371]
[1738703401759,0.173012,98031.0,98030.0,0.00015371]
[1738703401979,0.01,98031.0,98030.0,0.15316771]
[1738703402181,0.02,98031.0,98030.0,0.15316771]
[1738703402398,0.07742408,98037.0,98030.0,0.10253877]
[1738703402540,0.00822408,98037.0,98036.0,0.154005]
[1738703402914,0.00822408,98037.0,98036.0,0.25539006]